Workbook

Sheet G-STAR
B1: G-STAR JEANS DENIM
B2: REF | C2: STYLE | D2: DESCRIPTION | E2: COL | F2: EAN | G2: SZES | H2: FIT | I2: QTY | J2: RETAIL | K2: TOTAL
B3: 040898P008 | D3: KICK CROPPED | E3: MED AGED | F3: 8718354245160 | G3: 25 | H3: 0 | I3: 1 | J3: 199.9 | K3: =I3*J3 -> 199.9
B4: 040898P035 | C4: 3301 90'S TAPERED WMN | D4: SCATTER DENIM | E4: MED AGED SP | F4: 8718602951072 | G4: 29 | H4: Boyfriend | I4: 1 | J4: 119.95 | K4: 119.95
B5: 040898P039 | C5: 3301 90'S TAPERED WMN | D5: SCATTER DENIM | E5: MED AGED SP | F5: 8718602951171 | G5: 28 | H5: Boyfriend | I5: 1 | J5: 119.95 | K5: 119.95
B6: 040898P039 | C6: 3301 90'S TAPERED WMN | D6: SCATTER DENIM | E6: MED AGED SP | F6: 8718602951171 | G6: 28 | H6: Boyfriend | I6: 1 | J6: 119.95 | K6: 119.95
B7: 040898P008 | C7: 3301 A LOW SUPER SKINNY WMN | D7: BRANTLEY STRETCH DENIM | E7: MED AGED | F7: 8718599727391 | G7: 25 | H7: Skinny | I7: 1 | J7: 99.95 | K7: 99.95
B8: 040898P008 | C8: 3301 A LOW SUPER SKINNY WMN | D8: LT WT RYDELL DENIM | E8: MED AGED | F8: 8718353050185 | G8: 25 | H8: Tapered | I8: 1 | J8: 129.9 | K8: 129.9
B9: 040898P008 | C9: 3301 A LOW SUPER SKINNY WMN | D9: LT WT RYDELL DENIM | E9: MED AGED | F9: 8718353050185 | G9: 25 | H9: Tapered | I9: 1 | J9: 129.9 | K9: 129.9
B10: 040898P008 | C10: 3301 A LOW SUPER SKINNY WMN | D10: LT WT RYDELL DENIM | E10: MED AGED | F10: 8718353050185 | G10: 25 | H10: Tapered | I10: 1 | J10: 129.9 | K10: 129.9
B11: 040898P008 | C11: 3301 A LOW SUPER SKINNY WMN | D11: LT WT RYDELL DENIM | E11: MED AGED | F11: 8718353050185 | G11: 25 | H11: Tapered | I11: 1 | J11: 129.9 | K11: 129.9
B12: 040898P008 | C12: 3301 A LOW SUPER SKINNY WMN | D12: LT WT RYDELL DENIM | E12: MED AGED | F12: 8718353050185 | G12: 25 | H12: Tapered | I12: 1 | J12: 129.9 | K12: 129.9
B13: 040898P015 | C13: 3301 A LOW SUPER SKINNY WMN | D13: BRANTLEY STRETCH DENIM | E13: MED AGED | F13: 8718599727599 | G13: 28 | H13: Skinny | I13: 1 | J13: 99.95 | K13: 99.95
B14: 040898P015 | C14: 3301 A LOW SUPER SKINNY WMN | D14: BRANTLEY STRETCH DENIM | E14: MED AGED | F14: 8718599727599 | G14: 28 | H14: Skinny | I14: 1 | J14: 99.95 | K14: 99.95
B15: 040898P015 | C15: 3301 A LOW SUPER SKINNY WMN | D15: BRANTLEY STRETCH DENIM | E15: MED AGED | F15: 8718599727599 | G15: 28 | H15: Skinny | I15: 1 | J15: 99.95 | K15: 99.95
B16: 040898P015 | C16: 3301 A LOW SUPER SKINNY WMN | D16: BRANTLEY STRETCH DENIM | E16: MED AGED | F16: 8718599727599 | G16: 28 | H16: Skinny | I16: 1 | J16: 99.95 | K16: 99.95
B17: 040898P015 | C17: 3301 A LOW SUPER SKINNY WMN | D17: BRANTLEY STRETCH DENIM | E17: MED AGED | F17: 8718599727599 | G17: 28 | H17: Skinny | I17: 1 | J17: 99.95 | K17: 99.95
B18: 040898P015 | C18: 3301 A LOW SUPER SKINNY WMN | D18: BRANTLEY STRETCH DENIM | E18: MED AGED | F18: 8718599727599 | G18: 28 | H18: Skinny | I18: 1 | J18: 99.95 | K18: 99.95
B19: 040898P015 | C19: 3301 A LOW SUPER SKINNY WMN | D19: BRANTLEY STRETCH DENIM | E19: MED AGED | F19: 8718599727599 | G19: 28 | H19: Skinny | I19: 1 | J19: 99.95 | K19: 99.95
B20: 040898P017 | C20: 3301 A LOW SUPER SKINNY WMN | D20: BRANTLEY STRETCH DENIM | E20: MED AGED | F20: 8718599725045 | G20: 30 | H20: Skinny | I20: 1 | J20: 99.95 | K20: 99.95
B21: 040898P021 | C21: 3301 A LOW SUPER SKINNY WMN | D21: BRANTLEY STRETCH DENIM | E21: MED AGED | F21: 8718599727629 | G21: 30 | H21: Skinny | I21: 1 | J21: 99.95 | K21: 99.95
B22: 040898P024 | C22: 3301 A LOW SUPER SKINNY WMN | D22: RIDSED | E22: DISTRO SUPERSTRETCH | F22: 8718603013991 | G22: 25 | H22: Tapered | I22: 1 | J22: 99.95 | K22: 99.95
B23: 040898P025 | C23: 3301 A LOW SUPER SKINNY WMN | D23: BRANTLEY STRETCH DENIM | E23: MED AGED | F23: 8718599727049 | G23: 31 | H23: Skinny | I23: 1 | J23: 99.95 | K23: 99.95
B24: 040898P025 | C24: 3301 A LOW SUPER SKINNY WMN | D24: BRANTLEY STRETCH DENIM | E24: MED AGED | F24: 8718599727049 | G24: 31 | H24: Skinny | I24: 1 | J24: 99.95 | K24: 99.95
B25: 040898P025 | C25: 3301 A LOW SUPER SKINNY WMN | D25: BRANTLEY STRETCH DENIM | E25: MED AGED | F25: 8718599727049 | G25: 31 | H25: Skinny | I25: 1 | J25: 99.95 | K25: 99.95
B26: 040898P025 | C26: 3301 A LOW SUPER SKINNY WMN | D26: BRANTLEY STRETCH DENIM | E26: MED AGED | F26: 8718599727049 | G26: 31 | H26: Skinny | I26: 1 | J26: 99.95 | K26: 99.95
B27: 040898P025 | C27: 3301 A LOW SUPER SKINNY WMN | D27: BRANTLEY STRETCH DENIM | E27: MED AGED | F27: 8718599727049 | G27: 31 | H27: Skinny | I27: 1 | J27: 99.95 | K27: 99.95
B28: 040898P025 | C28: 3301 A LOW SUPER SKINNY WMN | D28: BRANTLEY STRETCH DENIM | E28: MED AGED | F28: 8718599727452 | G28: 31 | H28: Skinny | I28: 1 | J28: 99.95 | K28: 99.95
B29: 040898P035 | C29: 3301 A LOW SUPER SKINNY WMN | D29: BRANTLEY STRETCH DENIM | E29: MED AGED | F29: 8718599725427 | G29: 29 | H29: Skinny | I29: 1 | J29: 99.95 | K29: 99.95
B30: 040898P037 | C30: 3301 A LOW SUPER SKINNY WMN | D30: BRANTLEY STRETCH DENIM | E30: MED AGED | F30: 8718599727032 | G30: 29 | H30: Skinny | I30: 1 | J30: 99.95 | K30: 99.95
B31: 040898P066 | C31: 3301 BELL CUT WMN | D31: COMFORT PONTE WMN | E31: TRACK WASH | F31: 8718002104849 | G31: 26 | H31: Boot | I31: 1 | J31: 119.95 | K31: 119.95
B32: 040898P066 | C32: 3301 BELL CUT WMN | D32: COMFORT PONTE WMN | E32: TRACK WASH | F32: 8718002104849 | G32: 26 | H32: Boot | I32: 1 | J32: 119.95 | K32: 119.95
B33: 040898P069 | C33: 3301 BELL CUT WMN | D33: COMFORT PONTE DENIM | E33: TRACK WASH | F33: 8718002104863 | G33: 27 | H33: Boot | I33: 1 | J33: 119.95 | K33: 119.95
B34: 040898P069 | C34: 3301 BELL CUT WMN | D34: COMFORT PONTE DENIM | E34: TRACK WASH | F34: 8718002104863 | G34: 27 | H34: Boot | I34: 1 | J34: 119.95 | K34: 119.95
B35: 040898P069 | C35: 3301 BELL CUT WMN | D35: COMFORT PONTE DENIM | E35: TRACK WASH | F35: 8718002104962 | G35: 27 | H35: Boot | I35: 1 | J35: 119.95 | K35: 119.95
B36: 040898P071 | C36: 3301 BELL CUT WMN | D36: COMFORT PONTE DENIM | E36: TRACK WASH | F36: 8718002104832 | G36: 24 | H36: Boot | I36: 1 | J36: 119.95 | K36: 119.95
B37: 040898P071 | C37: 3301 BELL CUTT WMN | D37: COMFORT PONTE DENIM | E37: TRACK WASH | F37: 8718002104726 | G37: 24 | H37: Boot | I37: 1 | J37: 119.95 | K37: 119.95
B38: 040898P044 | C38: 3301 BELLCUT CHINO WMN | D38: COMFORT MAVER DENIM | E38: 3D VINTAGE | F38: 8718003291920 | G38: 27 | H38: Boot | I38: 1 | J38: 129.9 | K38: 129.9
B39: 040898P060 | C39: 3301 BELLCUT CHINO WMN | D39: COMFORT ASTON DENIM | E39: LT AGED | F39: 8718002664381 | G39: 27 | H39: Boot | I39: 1 | J39: 119.9 | K39: 119.9
B40: 040898P061 | C40: 3301 BELLCUT CHINO WMN | D40: HARVARD TWILL | E40: BLACK | F40: 8718003519468 | G40: 29 | H40: 0 | I40: 1 | J40: 119.9 | K40: 119.9
B41: 040898P040 | C41: 3301 BELLCUT WMN | D41: COMFORT PONTE DENIM | E41: TRACK WASH | F41: 8718003854255 | G41: 27 | H41: Boot | I41: 1 | J41: 99.9 | K41: 99.9
B42: 040898P040 | C42: 3301 BELLCUT WMN | D42: COMFORT ROAD DENIM | E42: TRACK WORN IN | F42: 8718098403987 | G42: 27 | H42: Boot | I42: 1 | J42: 99.9 | K42: 99.9
B43: 040898P044 | C43: 3301 BELLCUT WMN | D43: COMFORT ASPEN DENIM | E43: DARK AGED | F43: 8718002658984 | G43: 27 | H43: Boot | I43: 1 | J43: 119.95 | K43: 119.95
B44: 040898P044 | C44: 3301 BELLCUT WMN | D44: STAGER DENIM | E44: VINTAGE DESTROY | F44: 8717922550965 | G44: 27 | H44: Boot | I44: 1 | J44: 129.9 | K44: 129.9
B45: 040898P048 | C45: 3301 BELLCUT WMN | D45: COMFORT DEEPTONE DENIM | E45: RAW | F45: 8717831944961 | G45: 28 | H45: Boot | I45: 1 | J45: 119.95 | K45: 119.95
B46: 040898P056 | C46: 3301 BOOLTEG WMN | D46: COMFORT GRAFFIT DENIM | E46: DARK AGED | F46: 8718353936236 | G46: 29 | H46: Boot | I46: 1 | J46: 119.9 | K46: 119.9
B47: 040898P002 | C47: 3301 BOOTLEG WMN | D47: COMFORT BAKER DENIM | E47: RAW | F47: 8718513394296 | G47: 23 | H47: Boot | I47: 1 | J47: 99.95 | K47: 99.95
B48: 040898P002 | C48: 3301 BOOTLEG WMN | D48: COMFORT SKART DENIM | E48: DARK AGED | F48: 8718601064261 | G48: 23 | H48: Boot | I48: 1 | J48: 119.9 | K48: 119.9
B49: 040898P017 | C49: 3301 BOOTLEG WMN | D49: COMFORT ARCTIC DENIM | E49: TUMBLE RAW | F49: 8718353069897 | G49: 30 | H49: Boot | I49: 1 | J49: 99.9 | K49: 99.9
B50: 040898P017 | C50: 3301 BOOTLEG WMN | D50: COMFORT ARCTIC DENIM | E50: TUMBLE RAW | F50: 8718353069897 | G50: 30 | H50: Boot | I50: 1 | J50: 99.9 | K50: 99.9
B51: 040898P017 | C51: 3301 BOOTLEG WMN | D51: GLAZE SUPER STRETCH | E51: DARK AGED | F51: 8718354760984 | G51: 30 | H51: Boot | I51: 1 | J51: 99.9 | K51: 99.9
B52: 040898P017 | C52: 3301 BOOTLEG WMN | D52: GLAZE SUPER STRETCH | E52: DARK AGED | F52: 8718354760984 | G52: 30 | H52: Boot | I52: 1 | J52: 99.9 | K52: 99.9
B53: 040898P022 | C53: 3301 BOOTLEG WMN | D53: COMFORT D.I.DENIM | E53: RUGBY WASH | F53: 8718201231766 | G53: 28 | H53: Boot | I53: 1 | J53: 99.9 | K53: 99.9
B54: 040898P022 | C54: 3301 BOOTLEG WMN | D54: COMFORT D.I.DENIM | E54: RUGBY WASH | F54: 8718201231766 | G54: 28 | H54: Boot | I54: 1 | J54: 99.9 | K54: 99.9
B55: 040898P044 | C55: 3301 BOOTLEG WMN | D55: LTO SUPER STRETCH | E55: RAW DENIM | F55: 8718201232725 | G55: 27 | H55: Boot | I55: 1 | J55: 99.9 | K55: 99.9
B56: 040898P050 | C56: 3301 BOOTLEG WMN | D56: COMFORT GRAFFIT DENIM | E56: DARK AGED | F56: 8718353936229 | G56: 28 | H56: Boot | I56: 1 | J56: 119.9 | K56: 119.9
B57: 040898P050 | C57: 3301 BOOTLEG WMN | D57: COMFORT GRAFFIT DENIM | E57: DARK AGED | F57: 8718353936229 | G57: 28 | H57: Boot | I57: 1 | J57: 119.9 | K57: 119.9
B58: 24040898PO063 | C58: 3301 BOOTLEG WMN | D58: ITO SUPERSTRETCH | E58: RAW | F58: 8718201232800 | G58: 24 | H58: Boot | I58: 1 | J58: 99.9 | K58: 99.9
B59: 24040898PO063 | C59: 3301 BOOTLEG WMN | D59: ITO SUPERSTRETCH | E59: RAW | F59: 8718201232800 | G59: 24 | H59: Boot | I59: 1 | J59: 99.9 | K59: 99.9
B60: 040898P016 | C60: 3301 CHINO LOOSE TAPERED COJ WMN | D60: COMFORT ULTRA TWILL | E60: DARK PAPER BROWN | F60: 8718353746163 | G60: 26 | H60: 0 | I60: 1 | J60: 119.95 | K60: 119.95
B61: 040898P060 | C61: 3301 CHINO WMN STRAIGHT | D61: COMFORT CARE DENIM | E61: RAW | F61: 8718002662448 | G61: 27 | H61: Straight | I61: 1 | J61: 119.9 | K61: 119.9
B62: 040898P037 | C62: 3301 COMFORT SKINNY WMN | D62: ULTIMATE STRETCH CELLO | E62: VINTAGE AGED COBLER | F62: 8718513357918 | G62: 29 | H62: Slim | I62: 1 | J62: 139.9 | K62: 139.9
B63: 040898P056 | C63: 3301 COMFORT SKINNY WMN | D63: ULTIMATE STRETCH CELLO | E63: VINTAGE AGED COBLER | F63: 8718513357918 | G63: 29 | H63: Slim | I63: 1 | J63: 139.9 | K63: 139.9
B64: 040898P046 | C64: 3301 COMFORT SKINNY WMN | D64: SLANDER BLACK SUPER STRETCH | E64: DARK AGED | F64: 8718601034479 | G64: 32 | H64: Skinny | I64: 1 | J64: 99.95 | K64: 99.95
B65: 040898P046 | C65: 3301 COMFORT SKINNY WMN | D65: SLANDER BLACK SUPER STRETCH | E65: DARK AGED | F65: 8718601034479 | G65: 32 | H65: Skinny | I65: 1 | J65: 99.95 | K65: 99.95
B66: 040898P012 | C66: 3301 CONTOUR BELL WMN | D66: ULTIMATE STRETCH | E66: SLANDER WHITE | F66: 8718513285709 | G66: 26 | H66: 0 | I66: 1 | J66: 129.9 | K66: 129.9
B67: 040898P012 | C67: 3301 CONTOUR BELL WMN | D67: ULTIMATE STRETCH | E67: SLANDER WHITE | F67: 8718513285709 | G67: 26 | H67: 0 | I67: 1 | J67: 129.9 | K67: =I67*J67 -> 129.9
B68: 040898P012 | C68: 3301 CONTOUR BELL WMN | D68: ULTIMATE STRETCH | E68: SLANDER WHITE | F68: 8718513285709 | G68: 26 | H68: 0 | I68: 1 | J68: 129.9 | K68: 129.9
B69: 040898P012 | C69: 3301 CONTOUR BELL WMN | D69: ULTIMATE STRETCH | E69: SLANDER WHITE | F69: 8718513285709 | G69: 26 | H69: 0 | I69: 1 | J69: 129.9 | K69: 129.9
B70: 040898P012 | C70: 3301 CONTOUR BELL WMN | D70: ULTIMATE STRETCH | E70: SLANDER WHITE | F70: 8718513285709 | G70: 26 | H70: 0 | I70: 1 | J70: 129.9 | K70: 129.9
B71: 040898P012 | C71: 3301 CONTOUR BELL WMN | D71: ULTIMATE STRETCH | E71: SLANDER WHITE | F71: 8718513285709 | G71: 26 | H71: 0 | I71: 1 | J71: 129.9 | K71: 129.9
B72: 040898P012 | C72: 3301 CONTOUR BELL WMN | D72: ULTIMATE STRETCH | E72: SLANDER WHITE | F72: 8718513285709 | G72: 26 | H72: 0 | I72: 1 | J72: 129.9 | K72: 129.9
B73: 040898P003 | C73: 3301 CONTOUR HIGH SKINNY WMN | D73: BENWICK STRETCH DENIM | E73: DARK AGED | F73: 8718602605333 | G73: 24 | H73: Skinny | I73: 1 | J73: 99.95 | K73: 99.95
B74: 040898P003 | C74: 3301 CONTOUR HIGH SKINNY WMN | D74: SLANDER SUPER STRETCH | E74: DARK AGED | F74: 8718602688510 | G74: 24 | H74: Skinny | I74: 1 | J74: 99.95 | K74: 99.95
B75: 040898P003 | C75: 3301 CONTOUR HIGH SKINNY WMN | D75: SLANDER SUPER STRETCH | E75: DARK AGED | F75: 8718602688510 | G75: 24 | H75: Skinny | I75: 1 | J75: 99.95 | K75: 99.95
B76: 040898P003 | C76: 3301 CONTOUR HIGH SKINNY WMN | D76: SLANDER SUPER STRETCH | E76: DARK AGED | F76: 8718602688510 | G76: 24 | H76: Skinny | I76: 1 | J76: 99.95 | K76: 99.95
B77: 040898P003 | C77: 3301 CONTOUR HIGH SKINNY WMN | D77: SLANDER SUPER STRETCH | E77: DARK AGED | F77: 8718602688510 | G77: 24 | H77: Skinny | I77: 1 | J77: 99.95 | K77: 99.95
B78: 040898P003 | C78: 3301 CONTOUR HIGH SKINNY WMN | D78: SLANDER SUPER STRETCH | E78: DARK AGED | F78: 8718602688510 | G78: 24 | H78: Skinny | I78: 1 | J78: 99.95 | K78: 99.95
B79: 040898P003 | C79: 3301 CONTOUR HIGH SKINNY WMN | D79: SLANDER SUPER STRETCH | E79: DARK AGED | F79: 8718602688510 | G79: 24 | H79: Skinny | I79: 1 | J79: 99.95 | K79: 99.95
B80: 040898P003 | C80: 3301 CONTOUR HIGH SKINNY WMN | D80: SLANDER SUPER STRETCH | E80: DARK AGED | F80: 8718602688510 | G80: 24 | H80: Skinny | I80: 1 | J80: 99.95 | K80: 99.95
B81: 040898P003 | C81: 3301 CONTOUR HIGH SKINNY WMN | D81: SLANDER SUPER STRETCH | E81: DARK AGED | F81: 8718602688510 | G81: 24 | H81: Skinny | I81: 1 | J81: 99.95 | K81: 99.95
B82: 040898P003 | C82: 3301 CONTOUR HIGH SKINNY WMN | D82: SLANDER SUPER STRETCH | E82: DARK AGED | F82: 8718602688510 | G82: 24 | H82: Skinny | I82: 1 | J82: 99.95 | K82: 99.95
B83: 040898P003 | C83: 3301 CONTOUR HIGH SKINNY WMN | D83: VISOR STRETCH DENIM | E83: DARK AGED | F83: 8718602760261 | G83: 24 | H83: Straight | I83: 1 | J83: 99.95 | K83: 99.95
B84: 040898P003 | C84: 3301 CONTOUR HIGH SKINNY WMN | D84: VISOR STRETCH DENIM | E84: DARK AGED | F84: 8718602760261 | G84: 24 | H84: Straight | I84: 1 | J84: 99.95 | K84: 99.95
B85: 040898P003 | C85: 3301 CONTOUR HIGH SKINNY WMN | D85: VISOR STRETCH DENIM | E85: DARK AGED | F85: 8718602760261 | G85: 24 | H85: Straight | I85: 1 | J85: 99.95 | K85: 99.95
B86: 040898P003 | C86: 3301 CONTOUR HIGH SKINNY WMN | D86: VISOR STRETCH DENIM | E86: DARK AGED | F86: 8718602760261 | G86: 24 | H86: Straight | I86: 1 | J86: 99.95 | K86: 99.95
B87: 040898P005 | C87: 3301 CONTOUR HIGH SKINNY WMN | D87: HYTO BLACK SUPER STRETCH | E87: COBLER DIP WASH | F87: 8718601935202 | G87: 26 | H87: Slim | I87: 1 | J87: 99.95 | K87: 99.95
B88: 040898P005 | C88: 3301 CONTOUR HIGH SKINNY WMN | D88: HYTO BLACK SUPER STRETCH | E88: COBLER DIP WASH | F88: 8718601935202 | G88: 26 | H88: Slim | I88: 1 | J88: 99.95 | K88: 99.95
B89: 040898P005 | C89: 3301 CONTOUR HIGH SKINNY WMN | D89: LOXTON SUPER STRETCH | E89: RINSED | F89: 8718601608366 | G89: 26 | H89: Slim | I89: 1 | J89: 99.95 | K89: 99.95
B90: 040898P006 | C90: 3301 CONTOUR HIGH SKINNY WMN | D90: FRAKTO SUPER STRETCH | E90: MED AGED | F90: 8718601607413 | G90: 24 | H90: Skinny | I90: 1 | J90: 119.95 | K90: 119.95
B91: 040898P006 | C91: 3301 CONTOUR HIGH SKINNY WMN | D91: FRAKTO SUPER STRETCH | E91: MED AGED | F91: 8718601620498 | G91: 24 | H91: Slim | I91: 1 | J91: 119.95 | K91: 119.95
B92: 040898P006 | C92: 3301 CONTOUR HIGH SKINNY WMN | D92: HYTO BLACK SUPER STRETCH | E92: COBLER DIP WASH | F92: 8718601935615 | G92: 24 | H92: Straight | I92: 1 | J92: 99.95 | K92: 99.95
B93: 040898P006 | C93: 3301 CONTOUR HIGH SKINNY WMN | D93: HYTO BLACK SUPER STRETCH | E93: COBLER DIP WASH | F93: 8718601935615 | G93: 24 | H93: Straight | I93: 1 | J93: 99.95 | K93: 99.95
B94: 040898P006 | C94: 3301 CONTOUR HIGH SKINNY WMN | D94: HYTO BLACK SUPER STRETCH | E94: COBLER DIP WASH | F94: 8718601935615 | G94: 24 | H94: Straight | I94: 1 | J94: 99.95 | K94: 99.95
B95: 040898P006 | C95: 3301 CONTOUR HIGH SKINNY WMN | D95: HYTO BLACK SUPER STRETCH | E95: COBLER DIP WASH | F95: 8718601935615 | G95: 24 | H95: Straight | I95: 1 | J95: 99.95 | K95: 99.95
B96: 040898P006 | C96: 3301 CONTOUR HIGH SKINNY WMN | D96: HYTO BLACK SUPER STRETCH | E96: COBLER DIP WASH | F96: 8718601935615 | G96: 24 | H96: Straight | I96: 1 | J96: 99.95 | K96: 99.95
B97: 040898P006 | C97: 3301 CONTOUR HIGH SKINNY WMN | D97: VISOR STRETCH DENIM | E97: DARK AGED | F97: 8718602760155 | G97: 24 | H97: Straight | I97: 1 | J97: 99.95 | K97: 99.95
B98: 040898P006 | C98: 3301 CONTOUR HIGH SKINNY WMN | D98: VISOR STRETCH DENIM | E98: DARK AGED | F98: 8718602760155 | G98: 24 | H98: Straight | I98: 1 | J98: 99.95 | K98: 99.95
B99: 040898P006 | C99: 3301 CONTOUR HIGH SKINNY WMN | D99: VISOR STRETCH DENIM | E99: DARK AGED | F99: 8718602760155 | G99: 24 | H99: Straight | I99: 1 | J99: 99.95 | K99: 99.95
B100: 040898P006 | C100: 3301 CONTOUR HIGH SKINNY WMN | D100: VISOR STRETCH DENIM | E100: DARK AGED | F100: 8718602760155 | G100: 24 | H100: Straight | I100: 1 | J100: 99.95 | K100: 99.95
B101: 040898P006 | C101: 3301 CONTOUR HIGH SKINNY WMN | D101: VISOR STRETCH DENIM | E101: DARK AGED | F101: 8718602760155 | G101: 24 | H101: Straight | I101: 1 | J101: 99.95 | K101: 99.95
B102: 040898P006 | C102: 3301 CONTOUR HIGH SKINNY WMN | D102: VISOR STRETCH DENIM | E102: DARK AGED | F102: 8718602760155 | G102: 24 | H102: Straight | I102: 1 | J102: 99.95 | K102: 99.95
B103: 040898P006 | C103: 3301 CONTOUR HIGH SKINNY WMN | D103: VISOR STRETCH DENIM | E103: DARK AGED | F103: 8718602760155 | G103: 24 | H103: Straight | I103: 1 | J103: 99.95 | K103: 99.95
B104: 040898P007 | C104: 3301 CONTOUR HIGH SKINNY WMN | D104: HABB WHITE SUPER STRETCH | E104: 3D RINSED | F104: 8718601971828 | G104: 25 | H104: Slim | I104: 1 | J104: 99.95 | K104: 99.95
B105: 040898P007 | C105: 3301 CONTOUR HIGH SKINNY WMN | D105: VISOR STRETCH DENIM | E105: DARK AGED | F105: 8718602760162 | G105: 25 | H105: Straight | I105: 1 | J105: 99.95 | K105: 99.95
B106: 040898P008 | C106: 3301 CONTOUR HIGH SKINNY WMN | D106: BENWICK STRETCH DENIM | E106: DARK AGED | F106: 8718602605029 | G106: 25 | H106: Skinny | I106: 1 | J106: 99.95 | K106: 99.95
B107: 040898P008 | C107: 3301 CONTOUR HIGH SKINNY WMN | D107: HYTO BLACK SUPER STRETCH | E107: COBLER DIP WASH | F107: 8718601935301 | G107: 25 | H107: Slim | I107: 1 | J107: 99.95 | K107: 99.95
B108: 040898P008 | C108: 3301 CONTOUR HIGH SKINNY WMN | D108: HYTO BLACK SUPER STRETCH | E108: COBLER DIP WASH | F108: 8718601935301 | G108: 25 | H108: Slim | I108: 1 | J108: 99.95 | K108: 99.95
B109: 040898P008 | C109: 3301 CONTOUR HIGH SKINNY WMN | D109: HYTO BLACK SUPER STRETCH | E109: COBLER DIP WASH | F109: 8718601935370 | G109: 25 | H109: Slim | I109: 1 | J109: 99.95 | K109: 99.95
B110: 040898P008 | C110: 3301 CONTOUR HIGH SKINNY WMN | D110: SCAAL GREY SUPER STRETCH | E110: DARK AGED | F110: 8718601605631 | G110: 25 | H110: Slim | I110: 1 | J110: 119.95 | K110: 119.95
B111: 040898P012 | C111: 3301 CONTOUR HIGH SKINNY WMN | D111: VISOR STRETCH DENIM | E111: DARK AGED | F111: 8718602760285 | G111: 26 | H111: Straight | I111: 1 | J111: 99.95 | K111: 99.95
B112: 040898P012 | C112: 3301 CONTOUR HIGH SKINNY WMN | D112: VISOR STRETCH DENIM | E112: DARK AGED | F112: 8718602760285 | G112: 26 | H112: Straight | I112: 1 | J112: 99.95 | K112: 99.95
B113: 040898P012 | C113: 3301 CONTOUR HIGH SKINNY WMN | D113: VISOR STRETCH DENIM | E113: DARK AGED | F113: 8718602760391 | G113: 26 | H113: Straight | I113: 1 | J113: 99.95 | K113: 99.95
B114: 040898P012 | C114: 3301 CONTOUR HIGH SKINNY WMN | D114: VISOR STRETCH DENIM | E114: DARK AGED | F114: 8718602760391 | G114: 26 | H114: Straight | I114: 1 | J114: 99.95 | K114: 99.95
B115: 040898P012 | C115: 3301 CONTOUR HIGH SKINNY WMN | D115: VISOR STRETCH DENIM | E115: DARK AGED | F115: 8718602760391 | G115: 26 | H115: Straight | I115: 1 | J115: 99.95 | K115: 99.95
B116: 040898P019 | C116: 3301 CONTOUR HIGH SKINNY WMN | D116: HYTO BLACK SUPER STRETCH | E116: COBLER DIP WASH | F116: 8718601935240 | G116: 30 | H116: Slim | I116: 1 | J116: 99.95 | K116: 99.95
B117: 040898P019 | C117: 3301 CONTOUR HIGH SKINNY WMN | D117: SCAAL GREY SUPER STRETCH | E117: DARK AGED | F117: 8718601605686 | G117: 30 | H117: Slim | I117: 1 | J117: 119.95 | K117: 119.95
B118: 040898P020 | C118: 3301 CONTOUR HIGH SKINNY WMN | D118: HYTO BLACK SUPER STRETCH | E118: COBLER DIP WASH | F118: 8718601935240 | G118: 30 | H118: Slim | I118: 1 | J118: 99.95 | K118: 99.95
B119: 040898P020 | C119: 3301 CONTOUR HIGH SKINNY WMN | D119: HYTO BLACK SUPER STRETCH | E119: COBLER DIP WASH | F119: 8718601935240 | G119: 30 | H119: Slim | I119: 1 | J119: 99.95 | K119: 99.95
B120: 040898P020 | C120: 3301 CONTOUR HIGH SKINNY WMN | D120: HYTO BLACK SUPER STRETCH | E120: COBLER DIP WASH | F120: 8718601935240 | G120: 30 | H120: Slim | I120: 1 | J120: 99.95 | K120: 99.95
B121: 040898P020 | C121: 3301 CONTOUR HIGH SKINNY WMN | D121: HYTO BLACK SUPER STRETCH | E121: COBLER DIP WASH | F121: 8718601935240 | G121: 30 | H121: Slim | I121: 1 | J121: 99.95 | K121: 99.95
B122: 040898P020 | C122: 3301 CONTOUR HIGH SKINNY WMN | D122: HYTO BLACK SUPER STRETCH | E122: COBLER DIP WASH | F122: 8718601935240 | G122: 30 | H122: Slim | I122: 1 | J122: 99.95 | K122: 99.95
B123: 040898P021 | C123: 3301 CONTOUR HIGH SKINNY WMN | D123: SLANDER SUPER STRETCH | E123: DARK AGED | F123: 8718602688015 | G123: 28 | H123: Skinny | I123: 1 | J123: 119.95 | K123: 119.95
B124: 040898P021 | C124: 3301 CONTOUR HIGH SKINNY WMN | D124: SLANDER SUPER STRETCH | E124: DARK AGED | F124: 8718602688015 | G124: 28 | H124: Skinny | I124: 1 | J124: 119.95 | K124: 119.95
B125: 040898P021 | C125: 3301 CONTOUR HIGH SKINNY WMN | D125: SLANDER SUPER STRETCH | E125: DARK AGED | F125: 8718602688015 | G125: 28 | H125: Skinny | I125: 1 | J125: 119.95 | K125: 119.95
B126: 040898P021 | C126: 3301 CONTOUR HIGH SKINNY WMN | D126: VISOR STRETCH DENIM | E126: DARK AGED | F126: 8718602760414 | G126: 28 | H126: Straight | I126: 1 | J126: 99.95 | K126: 99.95
B127: 040898P021 | C127: 3301 CONTOUR HIGH SKINNY WMN | D127: VISOR STRETCH DENIM | E127: DARK AGED | F127: 8718602760414 | G127: 28 | H127: Straight | I127: 1 | J127: 99.95 | K127: 99.95
B128: 040898P033 | C128: 3301 CONTOUR HIGH SKINNY WMN | D128: COMFORT INOX DENIM | E128: DARK AGED | F128: 8718602969763 | G128: 28 | H128: Slim | I128: 1 | J128: 119.95 | K128: 119.95
B129: 040898P033 | C129: 3301 CONTOUR HIGH SKINNY WMN | D129: COMFORT INOX DENIM | E129: DARK AGED | F129: 8718602969763 | G129: 28 | H129: Slim | I129: 1 | J129: 119.95 | K129: 119.95
B130: 040898P033 | C130: 3301 CONTOUR HIGH SKINNY WMN | D130: COMFORT INOX DENIM | E130: DARK AGED | F130: 8718602969763 | G130: 28 | H130: Slim | I130: 1 | J130: 119.95 | K130: 119.95
B131: 040898P033 | C131: 3301 CONTOUR HIGH SKINNY WMN | D131: HYTO BLACK SUPER STRETCH | E131: COBLER DIP WASH | F131: 8718601935226 | G131: 28 | H131: Slim | I131: 1 | J131: 99.95 | K131: =I131*J131 -> 99.95
B132: 040898P033 | C132: 3301 CONTOUR HIGH SKINNY WMN | D132: HYTO BLACK SUPER STRETCH | E132: COBLER DIP WASH | F132: 8718601935226 | G132: 28 | H132: Slim | I132: 1 | J132: 99.95 | K132: 99.95
B133: 040898P033 | C133: 3301 CONTOUR HIGH SKINNY WMN | D133: HYTO BLACK SUPER STRETCH | E133: COBLER DIP WASH | F133: 8718601935226 | G133: 28 | H133: Slim | I133: 1 | J133: 99.95 | K133: 99.95
B134: 040898P033 | C134: 3301 CONTOUR HIGH SKINNY WMN | D134: HYTO BLACK SUPER STRETCH | E134: COBLER DIP WASH | F134: 8718601935226 | G134: 28 | H134: Slim | I134: 1 | J134: 99.95 | K134: 99.95
B135: 040898P033 | C135: 3301 CONTOUR HIGH SKINNY WMN | D135: HYTO BLACK SUPER STRETCH | E135: COBLER DIP WASH | F135: 8718601935226 | G135: 28 | H135: Slim | I135: 1 | J135: 99.95 | K135: 99.95
B136: 040898P033 | C136: 3301 CONTOUR HIGH SKINNY WMN | D136: HYTO BLACK SUPER STRETCH | E136: COBLER DIP WASH | F136: 8718601935226 | G136: 28 | H136: Slim | I136: 1 | J136: 99.95 | K136: 99.95
B137: 040898P033 | C137: 3301 CONTOUR HIGH SKINNY WMN | D137: HYTO BLACK SUPER STRETCH | E137: COBLER DIP WASH | F137: 8718601935226 | G137: 28 | H137: Slim | I137: 1 | J137: 99.95 | K137: 99.95
B138: 040898P033 | C138: 3301 CONTOUR HIGH SKINNY WMN | D138: HYTO BLACK SUPER STRETCH | E138: COBLER DIP WASH | F138: 8718601935226 | G138: 28 | H138: Slim | I138: 1 | J138: 99.95 | K138: 99.95
B139: 040898P033 | C139: 3301 CONTOUR HIGH SKINNY WMN | D139: SCALL GREY SUPER STRETCH | E139: DARK AGED | F139: 8718601605662 | G139: 28 | H139: Slim | I139: 1 | J139: 119.95 | K139: 119.95
B140: 040898P033 | C140: 3301 CONTOUR HIGH SKINNY WMN | D140: VISOR STRETCH DENIM | E140: DARK AGED | F140: 8718602760414 | G140: 28 | H140: Straight | I140: 1 | J140: 99.95 | K140: 99.95
B141: 040898P033 | C141: 3301 CONTOUR HIGH SKINNY WMN | D141: VISOR STRETCH DENIM | E141: DARK AGED | F141: 8718602760414 | G141: 28 | H141: Straight | I141: 1 | J141: 99.95 | K141: 99.95
B142: 040898P033 | C142: 3301 CONTOUR HIGH SKINNY WMN | D142: VISOR STRETCH DENIM | E142: DARK AGED | F142: 8718602760414 | G142: 28 | H142: Straight | I142: 1 | J142: 99.95 | K142: 99.95
B143: 040898P034 | C143: 3301 CONTOUR HIGH SKINNY WMN | D143: HYTO BLACK SUPER STRETCH | E143: COBLER DIP WASH | F143: 8718601935257 | G143: 31 | H143: Slim | I143: 1 | J143: 99.95 | K143: 99.95
B144: 040898P034 | C144: 3301 CONTOUR HIGH SKINNY WMN | D144: HYTO BLACK SUPER STRETCH | E144: COBLER DIP WASH | F144: 8718601935257 | G144: 31 | H144: Slim | I144: 1 | J144: 99.95 | K144: 99.95
B145: 040898P034 | C145: 3301 CONTOUR HIGH SKINNY WMN | D145: HYTO BLACK SUPER STRETCH | E145: COBLER DIP WASH | F145: 8718601935257 | G145: 31 | H145: Slim | I145: 1 | J145: 99.95 | K145: 99.95
B146: 040898P034 | C146: 3301 CONTOUR HIGH SKINNY WMN | D146: HYTO BLACK SUPER STRETCH | E146: COBLER DIP WASH | F146: 8718601935257 | G146: 31 | H146: Slim | I146: 1 | J146: 99.95 | K146: 99.95
B147: 040898P034 | C147: 3301 CONTOUR HIGH SKINNY WMN | D147: HYTO BLACK SUPER STRETCH | E147: COBLER DIP WASH | F147: 8718601935257 | G147: 31 | H147: Slim | I147: 1 | J147: 99.95 | K147: 99.95
B148: 040898P034 | C148: 3301 CONTOUR HIGH SKINNY WMN | D148: HYTO BLACK SUPER STRETCH | E148: COBLER DIP WASH | F148: 8718601935257 | G148: 31 | H148: Slim | I148: 1 | J148: 99.95 | K148: 99.95
B149: 040898P034 | C149: 3301 CONTOUR HIGH SKINNY WMN | D149: HYTO BLACK SUPER STRETCH | E149: COBLER DIP WASH | F149: 8718601935257 | G149: 31 | H149: Slim | I149: 1 | J149: 99.95 | K149: 99.95
B150: 040898P034 | C150: 3301 CONTOUR HIGH SKINNY WMN | D150: HYTO BLACK SUPER STRETCH | E150: COBLER DIP WASH | F150: 8718601935257 | G150: 31 | H150: Slim | I150: 1 | J150: 99.95 | K150: 99.95
B151: 040898P034 | C151: 3301 CONTOUR HIGH SKINNY WMN | D151: HYTO BLACK SUPERSRETCH | E151: COBLER DIP WASH | F151: 8718601935363 | G151: 31 | H151: Slim | I151: 1 | J151: 99.95 | K151: 99.95
B152: 040898P034 | C152: 3301 CONTOUR HIGH SKINNY WMN | D152: SCAAL GREY SPRSTRTCH | E152: DARK AGED | F152: 8718601605693 | G152: 31 | H152: Slim | I152: 1 | J152: 119.95 | K152: 119.95
B153: 040898P035 | C153: 3301 CONTOUR HIGH SKINNY WMN | D153: HYTO BLACK SUPER STRETCH | E153: COBLER DIP WASH | F153: 8718601935233 | G153: 29 | H153: Slim | I153: 1 | J153: 99.95 | K153: 99.95
B154: 040898P035 | C154: 3301 CONTOUR HIGH SKINNY WMN | D154: HYTO BLACK SUPER STRETCH | E154: COBLER DIP WASH | F154: 8718601935233 | G154: 29 | H154: Slim | I154: 1 | J154: 99.95 | K154: 99.95
B155: 040898P035 | C155: 3301 CONTOUR HIGH SKINNY WMN | D155: HYTO BLACK SUPER STRETCH | E155: COBLER DIP WASH | F155: 8718601935233 | G155: 29 | H155: Slim | I155: 1 | J155: 99.95 | K155: 99.95
B156: 040898P035 | C156: 3301 CONTOUR HIGH SKINNY WMN | D156: HYTO BLACK SUPER STRETCH | E156: COBLER DIP WASH | F156: 8718601935233 | G156: 29 | H156: Slim | I156: 1 | J156: 99.95 | K156: 99.95
B157: 040898P035 | C157: 3301 CONTOUR HIGH SKINNY WMN | D157: HYTO BLACK SUPER STRETCH | E157: COBLER DIP WASH | F157: 8718601935233 | G157: 29 | H157: Slim | I157: 1 | J157: 99.95 | K157: 99.95
B158: 040898P035 | C158: 3301 CONTOUR HIGH SKINNY WMN | D158: HYTO BLACK SUPER STRETCH | E158: COBLER DIP WASH | F158: 8718601935233 | G158: 29 | H158: Slim | I158: 1 | J158: 99.95 | K158: 99.95
B159: 040898P035 | C159: 3301 CONTOUR HIGH SKINNY WMN | D159: HYTO BLACK SUPER STRETCH | E159: COBLER DIP WASH | F159: 8718601935233 | G159: 29 | H159: Slim | I159: 1 | J159: 99.95 | K159: 99.95
B160: 040898P035 | C160: 3301 CONTOUR HIGH SKINNY WMN | D160: HYTO BLACK SUPER STRETCH | E160: COBLER DIP WASH | F160: 8718601935233 | G160: 29 | H160: Slim | I160: 1 | J160: 99.95 | K160: 99.95
B161: 040898P035 | C161: 3301 CONTOUR HIGH SKINNY WMN | D161: HYTO BLACK SUPER STRETCH | E161: COBLER DIP WASH | F161: 8718601935233 | G161: 29 | H161: Slim | I161: 1 | J161: 99.95 | K161: 99.95
B162: 040898P035 | C162: 3301 CONTOUR HIGH SKINNY WMN | D162: HYTO BLACK SUPER STRETCH | E162: COBLER DIP WASH | F162: 8718601935233 | G162: 29 | H162: Slim | I162: 1 | J162: 99.95 | K162: 99.95
B163: 040898P035 | C163: 3301 CONTOUR HIGH SKINNY WMN | D163: HYTO BLACK SUPER STRETCH | E163: COBLER DIP WASH | F163: 8718601935233 | G163: 29 | H163: Slim | I163: 1 | J163: 99.95 | K163: 99.95
B164: 040898P037 | C164: 3301 CONTOUR HIGH SKINNY WMN | D164: SCAAL GREY SUPER STRETCH | E164: DARK AGED | F164: 8718601605785 | G164: 29 | H164: Slim | I164: 1 | J164: 119.95 | K164: 119.95
B165: 040898P037 | C165: 3301 CONTOUR HIGH SKINNY WMN | D165: SCAAL GREY SUPER STRETCH | E165: DARK AGED | F165: 8718601605785 | G165: 29 | H165: Slim | I165: 1 | J165: 119.95 | K165: 119.95
B166: 040898P037 | C166: 3301 CONTOUR HIGH SKINNY WMN | D166: SCAAL GREY SUPER STRETCH | E166: DARK AGED | F166: 8718601605785 | G166: 29 | H166: Slim | I166: 1 | J166: 119.95 | K166: 119.95
B167: 040898P037 | C167: 3301 CONTOUR HIGH SKINNY WMN | D167: SCAAL GREY SUPER STRETCH | E167: DARK AGED | F167: 8718601605785 | G167: 29 | H167: Slim | I167: 1 | J167: 119.95 | K167: 119.95
B168: 040898P037 | C168: 3301 CONTOUR HIGH SKINNY WMN | D168: SCAAL GREY SUPER STRETCH | E168: DARK AGED | F168: 8718601605785 | G168: 29 | H168: Slim | I168: 1 | J168: 119.95 | K168: 119.95
B169: 040898P037 | C169: 3301 CONTOUR HIGH SKINNY WMN | D169: SCAAL GREY SUPER STRETCH | E169: DARK AGED | F169: 8718601605785 | G169: 29 | H169: Slim | I169: 1 | J169: 119.95 | K169: 119.95
B170: 040898P038 | C170: 3301 CONTOUR HIGH SKINNY WMN | D170: OZMO SUPER STRETCH | E170: DARK AGED | F170: 8718601609028 | G170: 28 | H170: Slim | I170: 1 | J170: 99.95 | K170: 99.95
B171: 040898P039 | C171: 3301 CONTOUR HIGH SKINNY WMN | D171: COMFORT INOX DENIM | E171: DARK AGED | F171: 8718602969763 | G171: 28 | H171: Slim | I171: 1 | J171: 119.95 | K171: 119.95
B172: 040898P039 | C172: 3301 CONTOUR HIGH SKINNY WMN | D172: COMFORT INOX DENIM | E172: DARK AGED | F172: 8718602969763 | G172: 28 | H172: Slim | I172: 1 | J172: 119.95 | K172: 119.95
B173: 040898P039 | C173: 3301 CONTOUR HIGH SKINNY WMN | D173: COMFORT INOX DENIM | E173: DARK AGED | F173: 8718602969763 | G173: 28 | H173: Slim | I173: 1 | J173: 119.95 | K173: 119.95
B174: 040898P039 | C174: 3301 CONTOUR HIGH SKINNY WMN | D174: COMFORT INOX DENIM | E174: DARK AGED | F174: 8718602969763 | G174: 28 | H174: Slim | I174: 1 | J174: 119.95 | K174: 119.95
B175: 040898P039 | C175: 3301 CONTOUR HIGH SKINNY WMN | D175: COMFORT INOX DENIM | E175: DARK AGED | F175: 8718602969763 | G175: 28 | H175: Slim | I175: 1 | J175: 119.95 | K175: 119.95
B176: 040898P039 | C176: 3301 CONTOUR HIGH SKINNY WMN | D176: COMFORT INOX DENIM | E176: DARK AGED | F176: 8718602969763 | G176: 28 | H176: Slim | I176: 1 | J176: 119.95 | K176: 119.95
B177: 040898P039 | C177: 3301 CONTOUR HIGH SKINNY WMN | D177: COMFORT INOX DENIM | E177: DARK AGED | F177: 8718602969763 | G177: 28 | H177: Slim | I177: 1 | J177: 119.95 | K177: 119.95
B178: 040898P039 | C178: 3301 CONTOUR HIGH SKINNY WMN | D178: SCALL GREY SUPER STRETCH | E178: DARK AGED | F178: 8718601605662 | G178: 28 | H178: Slim | I178: 1 | J178: 119.95 | K178: 119.95
B179: 040898P040 | C179: 3301 CONTOUR HIGH SKINNY WMN | D179: COMFORT LINET DENIM | E179: LT AGED DESTORY | F179: 8718601568790 | G179: 27 | H179: Slim | I179: 1 | J179: 119.95 | K179: 119.95
B180: 040898P046 | C180: 3301 CONTOUR HIGH SKINNY WMN | D180: HYTO BLACK SUPER STRETCH | E180: COBLER DIP WASH | F180: 8718601935370 | G180: 32 | H180: Slim | I180: 1 | J180: 99.95 | K180: 99.95
B181: 040898P049 | C181: 3301 CONTOUR HIGH SKINNY WMN | D181: COMFORT INOX DENIM | E181: DARK AGED | F181: 8718602969770 | G181: 29 | H181: Slim | I181: 1 | J181: 119.95 | K181: 119.95
B182: 040898P049 | C182: 3301 CONTOUR HIGH SKINNY WMN | D182: COMFORT INOX DENIM | E182: DARK AGED | F182: 8718602969770 | G182: 29 | H182: Slim | I182: 1 | J182: 119.95 | K182: 119.95
B183: 040898P049 | C183: 3301 CONTOUR HIGH SKINNY WMN | D183: FRAKTO SUPER STRETCH | E183: MED AGED | F183: 8718601607352 | G183: 29 | H183: Skinny | I183: 1 | J183: 119.95 | K183: 119.95
B184: 040898P054 | C184: 3301 CONTOUR HIGH SKINNY WMN | D184: HYTO BLACK SUPER STRETCH | E184: COBLER DIP WASH | F184: 8718601935332 | G184: 28 | H184: Slim | I184: 1 | J184: 99.95 | K184: 99.95
B185: 040898P054 | C185: 3301 CONTOUR HIGH SKINNY WMN | D185: HYTO BLACK SUPER STRETCH | E185: COBLER DIP WASH | F185: 8718601935332 | G185: 28 | H185: Slim | I185: 1 | J185: 99.95 | K185: 99.95
B186: 040898P054 | C186: 3301 CONTOUR HIGH SKINNY WMN | D186: SCAAL GREY SUPERSTTETCH | E186: DARK AGED | F186: 8718601605778 | G186: 28 | H186: Slim | I186: 1 | J186: 119.95 | K186: 119.95
B187: 040898P054 | C187: 3301 CONTOUR HIGH SKINNY WMN | D187: SCAAL GREY SUPERSTTETCH | E187: DARK AGED | F187: 8718601605778 | G187: 28 | H187: Slim | I187: 1 | J187: 119.95 | K187: 119.95
B188: 040898P054 | C188: 3301 CONTOUR HIGH SKINNY WMN | D188: SCAAL GREY SUPERSTTETCH | E188: DARK AGED | F188: 8718601605778 | G188: 28 | H188: Slim | I188: 1 | J188: 119.95 | K188: 119.95
B189: 040898P054 | C189: 3301 CONTOUR HIGH SKINNY WMN | D189: SCAAL GREY SUPERSTTETCH | E189: DARK AGED | F189: 8718601605778 | G189: 28 | H189: Slim | I189: 1 | J189: 119.95 | K189: 119.95
B190: 040898P062 | C190: 3301 CONTOUR HIGH SKINNY WMN | D190: NIPPON SUPERSTRETCH | E190: MED AGED | F190: 8718602584911 | G190: 25 | H190: Skinny | I190: 1 | J190: 129.95 | K190: 129.95
B191: 040898P062 | C191: 3301 CONTOUR HIGH SKINNY WMN | D191: NIPPON SUPERSTRETCH | E191: MED AGED | F191: 8718602584911 | G191: 25 | H191: Skinny | I191: 1 | J191: 129.95 | K191: 129.95
B192: 040898P062 | C192: 3301 CONTOUR HIGH SKINNY WMN | D192: NIPPON SUPERSTRETCH | E192: MED AGED | F192: 8718602584911 | G192: 25 | H192: Skinny | I192: 1 | J192: 129.95 | K192: 129.95
B193: 040898P062 | C193: 3301 CONTOUR HIGH SKINNY WMN | D193: NIPPON SUPERSTRETCH | E193: MED AGED | F193: 8718602584911 | G193: 25 | H193: Skinny | I193: 1 | J193: 129.95 | K193: 129.95
B194: 040898P062 | C194: 3301 CONTOUR HIGH SKINNY WMN | D194: NIPPON SUPERSTRETCH | E194: MED AGED | F194: 8718602584911 | G194: 25 | H194: Skinny | I194: 1 | J194: 129.95 | K194: 129.95
B195: 040898P062 | C195: 3301 CONTOUR HIGH SKINNY WMN | D195: NIPPON SUPERSTRETCH | E195: MED AGED | F195: 8718602584911 | G195: 25 | H195: Skinny | I195: 1 | J195: 129.95 | K195: =I195*J195 -> 129.95
B196: 040898P062 | C196: 3301 CONTOUR HIGH SKINNY WMN | D196: NIPPON SUPERSTRETCH | E196: MED AGED | F196: 8718602584911 | G196: 25 | H196: Skinny | I196: 1 | J196: 129.95 | K196: 129.95
B197: 040898P062 | C197: 3301 CONTOUR HIGH SKINNY WMN | D197: NIPPON SUPERSTRETCH | E197: MED AGED | F197: 8718602584911 | G197: 25 | H197: Skinny | I197: 1 | J197: 129.95 | K197: 129.95
B198: 040898P062 | C198: 3301 CONTOUR HIGH SKINNY WMN | D198: NIPPON SUPERSTRETCH | E198: MED AGED | F198: 8718602584911 | G198: 25 | H198: Skinny | I198: 1 | J198: 129.95 | K198: 129.95
B199: 040898P062 | C199: 3301 CONTOUR HIGH SKINNY WMN | D199: NIPPON SUPERSTRETCH | E199: MED AGED | F199: 8718602584911 | G199: 25 | H199: Skinny | I199: 1 | J199: 129.95 | K199: 129.95
B200: 040898P062 | C200: 3301 CONTOUR HIGH SKINNY WMN | D200: NIPPON SUPERSTRETCH | E200: MED AGED | F200: 8718602584911 | G200: 25 | H200: Skinny | I200: 1 | J200: 129.95 | K200: 129.95
... 4300 more rows
